fUST/lending_fUST_20250328
["ID","MTS","AMOUNT","RATE_DAILY","PERIOD"]
[356762480,1743137256836,-500.0,0.0003589,17]
[356762481,1743137256859,-500.0,0.0003589,17]
[356762482,1743137256882,-500.0,0.0003589,17]
[356762483,1743137256905,-500.0,0.0003589,17]
[356762484,1743137256928,-500.0,0.0003589,17]
[356762485,1743137256950,-1609.36,0.0003589,17]
[356762486,1743137256976,-500.0,0.0003589,17]
[356762487,1743137256999,-500.0,0.0003589,17]
[356762488,1743137257022,-500.0,0.0003589,17]
[356762489,1743137257046,-553.79742465,0.0003589,17]
[356762490,1743137257069,-765.4,0.0003589,17]
[356762491,1743137257092,-500.0,0.0003589,17]
[356762492,1743137257114,-500.0,0.0003589,17]
[356762493,1743137257136,-500.0,0.0003589,17]
[356762494,1743137257159,-506.68256236,0.0003589,17]
[356762495,1743137257183,-500.0,0.0003589,17]
[356762496,1743137257205,-500.0,0.0003589,17]
[356762497,1743137257233,-500.0,0.0003589,17]
[356762498,1743137257256,-500.0,0.0003589,17]
[356762499,1743137257279,-752.93,0.0003589,17]
[356762500,1743137257302,-500.0,0.0003589,17]
[356762501,1743137257325,-771.1,0.0003589,17]
[356762502,1743137257347,-657.71,0.0003589,17]
[356762503,1743137257371,-500.0,0.0003589,17]
[356762504,1743137257393,-500.0,0.0003589,17]
[356762505,1743137257414,-500.0,0.0003589,17]
[356762506,1743137257437,-1414.0,0.0003589,17]
[356762507,1743137257462,-500.0,0.0003589,17]
[356762508,1743137257485,-500.0,0.0003589,17]
[356762509,1743137257509,-500.0,0.0003589,17]
[356762510,1743137257531,-500.0,0.0003589,2]
[356762511,1743137257552,-500.0,0.0003589,17]
[356762512,1743137257575,-703.73,0.0003589,17]
[356762513,1743137257598,-1113.4,0.0003589,17]
[356762514,1743137257620,-500.0,0.0003589,17]
[356762515,1743137257643,-569.38,0.0003589,17]
[356762516,1743137257665,-500.0,0.0003589,17]
[356762517,1743137257687,-746.76,0.0003589,17]
[356762518,1743137257711,-612.27,0.0003589,17]
[356762519,1743137257733,-500.0,0.0003589,17]
[356762520,1743137257756,-500.0,0.0003589,17]
[356762521,1743137257778,-500.0,0.0003589,17]
[356762522,1743137257800,-500.0,0.0003589,17]
[356762523,1743137257823,-500.0,0.0003589,17]
[356762524,1743137257849,-532.27647253,0.0003589,17]
[356762525,1743137257873,-562.62569819,0.0003589,17]
[356762526,1743137257896,-500.0,0.0003589,17]
[356762527,1743137257921,-500.0,0.0003589,17]
[356762528,1743137257945,-500.0,0.0003589,17]
[356762529,1743137257968,-500.0,0.0003589,17]
[356762530,1743137257991,-761.65,0.0003589,17]
[356762531,1743137258012,-280.57012205,0.0003589,17]
[356762532,1743137258035,-500.0,0.0003589,17]
[356762533,1743137258056,-500.0,0.0003589,17]
[356762534,1743137258079,-500.0,0.0003589,17]
[356762535,1743137258101,-1388.08,0.0003589,17]
[356762536,1743137258123,-500.0,0.0003589,17]
[356762537,1743137258145,-500.0,0.0003589,17]
[356762538,1743137258166,-629.28061354,0.0003589,17]
[356762539,1743137258188,-500.0,0.0003589,17]
[356762540,1743137258212,-500.0,0.0003589,17]
[356762541,1743137258236,-2114.56,0.0003589,17]
[356762542,1743137258257,-676.74,0.0003589,17]
[356762543,1743137258279,-500.0,0.0003589,17]
[356762544,1743137258301,-500.0,0.0003589,17]
[356762545,1743137258324,-500.0,0.0003589,17]
[356762546,1743137258347,-500.0,0.0003589,17]
[356762547,1743137258368,-500.0,0.0003589,17]
[356762548,1743137258390,-1821.71,0.0003589,17]
[356762549,1743137258411,-609.54,0.0003589,17]
[356762550,1743137258433,-688.98476115,0.0003589,17]
[356762551,1743137261316,-500.0,0.00035616,17]
[356762552,1743137261337,-546.09523885,0.0003589,17]
[356762553,1743137261543,-1361.15,0.0003589,17]
[356762554,1743137261564,-222.3,0.0003589,17]
[356762555,1743137261585,-500.0,0.0003589,17]
[356762556,1743137261607,-500.0,0.0003589,17]
[356762557,1743137261629,-527.06,0.0003589,17]
[356762558,1743137261650,-170.6925339,0.0003589,17]
[356762559,1743137261670,-500.0,0.0003589,17]
[356762560,1743137261691,-500.0,0.0003589,17]
[356762561,1743137261714,-1308.3,0.0003589,17]
[356762562,1743137261735,-500.0,0.0003589,17]
[356762563,1743137261757,-500.0,0.0003589,17]
[356762564,1743137261778,-500.0,0.0003589,17]
[356762565,1743137261800,-500.0,0.0003589,17]
[356762566,1743137261823,-500.0,0.0003589,17]
[356762567,1743137261846,-500.0,0.0003589,17]
[356762568,1743137261867,-500.0,0.0003589,17]
[356762569,1743137261889,-500.0,0.0003589,17]
[356762570,1743137261913,-500.0,0.0003589,17]
[356762571,1743137261934,-500.0,0.0003589,17]
[356762572,1743137261955,-500.0,0.0003589,17]
[356762573,1743137261977,-1131.63,0.0003589,17]
[356762574,1743137261997,-500.0,0.0003589,17]
[356762575,1743137262019,-500.0,0.0003589,17]
[356762576,1743137262040,-500.0,0.0003589,17]
[356762577,1743137262060,-500.0,0.0003589,17]
[356762578,1743137262081,-500.0,0.0003589,17]
[356762579,1743137262101,-500.0,0.0003589,17]
[356762580,1743137262123,-789.85,0.0003589,17]
[356762581,1743137262143,-500.0,0.0003589,17]
[356762582,1743137262165,-756.08,0.0003589,17]
[356762583,1743137262186,-500.0,0.0003589,17]
[356762584,1743137262208,-500.0,0.0003589,17]
[356762585,1743137262230,-1360.67,0.0003589,17]
[356762586,1743137262250,-500.0,0.0003589,17]
[356762587,1743137262271,-602.0,0.0003589,17]
[356762588,1743137262296,-500.0,0.0003589,17]
[356762589,1743137262317,-500.0,0.0003589,17]
[356762590,1743137262339,-500.0,0.0003589,17]
[356762591,1743137262360,-500.0,0.0003589,17]
[356762592,1743137262380,-500.0,0.0003589,17]
[356762593,1743137262401,-500.0,0.0003589,17]
[356762594,1743137262422,-500.0,0.0003589,17]
[356762595,1743137262443,-500.0,0.0003589,17]
[356762596,1743137262466,-500.0,0.0003589,17]
[356762597,1743137262486,-500.0,0.0003589,17]
[356762598,1743137262508,-1324.76,0.0003589,17]
[356762599,1743137262528,-500.0,0.0003589,17]
[356762600,1743137262549,-500.0,0.0003589,17]
[356762601,1743137262570,-500.0,0.0003589,17]
[356762602,1743137262591,-500.0,0.0003589,17]
[356762603,1743137262611,-500.0,0.0003589,17]
[356762604,1743137262631,-500.0,0.0003589,17]
[356762605,1743137262652,-500.0,0.0003589,17]
[356762606,1743137262673,-1032.3,0.0003589,17]
[356762607,1743137262695,-500.0,0.0003589,17]
[356762608,1743137262718,-500.0,0.0003589,17]
[356762609,1743137262738,-500.0,0.0003589,17]
[356762610,1743137262759,-500.0,0.0003589,17]
[356762611,1743137262781,-2004.25,0.0003589,17]
[356762612,1743137262802,-500.0,0.0003589,17]
[356762613,1743137262825,-947.49,0.0003589,2]
[356762614,1743137262846,-500.0,0.0003589,17]
[356762615,1743137262869,-599.1,0.0003589,17]
[356762616,1743137262890,-500.0,0.0003589,17]
[356762617,1743137262912,-1071.03,0.0003589,17]
[356762618,1743137262932,-512.66,0.0003589,17]
[356762619,1743137262953,-500.0,0.0003589,17]
[356762620,1743137262974,-500.0,0.0003589,17]
[356762621,1743137262996,-1338.92,0.0003589,17]
[356762622,1743137263016,-500.0,0.0003589,17]
[356762623,1743137263039,-500.0,0.0003589,17]
[356762624,1743137263061,-500.0,0.0003589,17]
[356762625,1743137263082,-500.0,0.0003589,17]
[356762626,1743137263103,-500.0,0.0003589,17]
[356762627,1743137263123,-500.0,0.0003589,17]
[356762628,1743137263144,-500.0,0.0003589,17]
[356762629,1743137263165,-641.85,0.0003589,17]
[356762630,1743137263185,-500.0,0.0003589,17]
[356762631,1743137263208,-500.0,0.0003589,17]
[356762632,1743137263229,-500.0,0.0003589,17]
[356762633,1743137263251,-500.0,0.0003589,17]
[356762634,1743137263272,-1165.07,0.0003589,17]
[356762635,1743137263293,-1077.29,0.0003589,17]
[356762636,1743137263314,-500.0,0.0003589,17]
[356762637,1743137263336,-500.0,0.0003589,17]
[356762638,1743137263357,-2132.21,0.0003589,17]
[356762639,1743137263378,-800.08,0.0003589,17]
[356762640,1743137263399,-500.0,0.0003589,17]
[356762641,1743137263419,-1752.53,0.0003589,17]
[356762642,1743137263440,-500.0,0.0003589,17]
[356762643,1743137263460,-500.0,0.0003589,17]
[356762644,1743137263483,-500.0,0.0003589,17]
[356762645,1743137263503,-500.0,0.0003589,17]
[356762646,1743137263525,-505.88,0.0003589,17]
[356762647,1743137263545,-500.0,0.0003589,17]
[356762648,1743137263566,-500.0,0.0003589,17]
[356762649,1743137263587,-500.0,0.0003589,7]
[356762650,1743137263608,-743.09,0.0003589,17]
[356762651,1743137263630,-754.09,0.0003589,17]
[356762652,1743137263650,-500.0,0.0003589,17]
[356762653,1743137263670,-500.0,0.0003589,17]
[356762654,1743137263691,-500.0,0.0003589,17]
[356762655,1743137263715,-500.0,0.0003589,17]
[356762656,1743137263736,-1958.08,0.0003589,17]
[356762657,1743137263758,-699.87,0.0003589,17]
[356762658,1743137263781,-1579.14,0.0003589,17]
[356762659,1743137263802,-508.30926685,0.0003589,17]
[356762660,1743137263824,-500.0,0.0003589,17]
[356762661,1743137263850,-500.0,0.0003589,17]
[356762663,1743137263874,-525.89,0.0003589,17]
[356762664,1743137263895,-500.0,0.0003589,17]
[356762665,1743137263918,-500.0,0.0003589,17]
[356762666,1743137263941,-712.75,0.0003589,17]
[356762667,1743137263962,-549.06515066,0.0003589,17]
[356762668,1743137263985,-500.0,0.0003589,17]
[356762669,1743137264007,-500.0,0.0003589,17]
[356762670,1743137264032,-500.0,0.0003589,17]
[356762671,1743137264054,-265.46886193,0.0003589,17]
[356762672,1743137264075,-500.0,0.0003589,17]
[356762673,1743137264098,-500.0,0.0003589,17]
[356762674,1743137264119,-648.5,0.0003589,17]
[356762675,1743137264140,-500.0,0.0003589,17]
[356762676,1743137264161,-500.0,0.0003589,17]
[356762677,1743137264182,-500.0,0.0003589,17]
[356762678,1743137264202,-889.02,0.0003589,17]
[356762679,1743137264226,-500.0,0.0003589,17]
[356762680,1743137264246,-500.0,0.0003589,17]
[356762681,1743137264268,-680.5,0.0003589,17]
[356762682,1743137264291,-500.0,0.0003589,17]
[356762683,1743137264312,-579.81,0.0003589,17]
[356762684,1743137264333,-500.0,0.0003589,17]
[356762685,1743137264354,-333.80720727,0.0003589,17]
[356762686,1743137264375,-500.0,0.0003589,17]
[356762687,1743137264397,-500.0,0.0003589,17]
[356762688,1743137264417,-500.0,0.0003589,17]
[356762689,1743137264439,-500.0,0.0003589,17]
[356762690,1743137264459,-500.0,0.0003589,17]
[356762691,1743137264481,-500.0,0.0003589,17]
[356762692,1743137264501,-500.0,0.0003589,17]
[356762693,1743137264522,-500.0,0.0003589,17]
[356762694,1743137264543,-293.43084902,0.0003589,17]
[356762695,1743137264564,-500.0,0.0003589,17]
[356762696,1743137264585,-500.0,0.0003589,17]
[356762697,1743137264606,-500.0,0.0003589,2]
[356762698,1743137264628,-573.48,0.0003589,17]
[356762699,1743137264822,-500.0,0.0003589,17]
[356762700,1743137264849,-1333.44,0.0003589,17]
[356762701,1743137264872,-500.0,0.0003589,17]
[356762702,1743137264895,-2536.53,0.0003589,17]
[356762703,1743137264920,-500.0,0.0003589,17]
[356762704,1743137264942,-1619.54,0.0003589,17]
[356762705,1743137264967,-1432.11,0.0003589,17]
[356762706,1743137264992,-500.0,0.0003589,17]
[356762707,1743137265014,-500.0,0.0003589,17]
[356762708,1743137265038,-500.0,0.0003589,17]
[356762709,1743137265059,-500.0,0.0003589,17]
[356762710,1743137265083,-500.0,0.0003589,17]
[356762711,1743137265106,-500.0,0.0003589,17]
[356762712,1743137265128,-500.0,0.0003589,17]
[356762713,1743137265150,-1650.23,0.0003589,17]
[356762714,1743137265173,-500.0,0.0003589,17]
[356762715,1743137265195,-767.88,0.0003589,17]
[356762716,1743137265220,-500.0,0.0003589,17]
[356762717,1743137265241,-500.0,0.0003589,17]
[356762718,1743137265262,-500.0,0.0003589,17]
[356762719,1743137265285,-454.09638787,0.0003589,17]
[356762720,1743137265307,-500.0,0.0003589,17]
[356762721,1743137265328,-500.0,0.0003589,17]
[356762722,1743137265350,-3720.92,0.0003589,17]
[356762723,1743137265371,-500.0,0.0003589,17]
[356762724,1743137265392,-708.88,0.0003589,17]
[356762725,1743137265421,-1385.56,0.0003589,17]
[356762726,1743137265442,-539.49976725,0.0003589,17]
[356762727,1743137265463,-500.0,0.0003589,17]
[356762728,1743137265488,-630.2,0.0003589,17]
[356762729,1743137265509,-3899.38,0.0003589,17]
[356762730,1743137265530,-500.0,0.0003589,17]
[356762731,1743137265552,-530.34,0.0003589,17]
[356762732,1743137265572,-535.07565475,0.0003589,17]
[356762733,1743137265594,-2817.83156965,0.0003589,17]
[356762734,1743137266092,-500.0,0.0003589,17]
[356762735,1743137266113,-500.0,0.0003589,17]
[356762736,1743137266134,-1595.74,0.0003589,17]
[356762737,1743137266154,-500.0,0.0003589,17]
[356762738,1743137266175,-1000.0,0.0003589,17]
[356762739,1743137266195,-1402.83,0.0003589,17]
[356762740,1743137266217,-2762.38,0.0003589,17]
[356762741,1743137266238,-500.0,0.0003589,17]
[356762742,1743137266258,-2114.39,0.0003589,17]
[356762743,1743137266279,-500.0,0.0003589,17]
[356762744,1743137266299,-500.0,0.0003589,17]
[356762745,1743137266321,-901.96,0.0003589,17]
[356762746,1743137266342,-500.0,0.0003589,17]
[356762747,1743137266363,-500.0,0.0003589,17]
[356762748,1743137266383,-500.0,0.0003589,17]
[356762749,1743137266404,-500.0,0.0003589,17]
[356762750,1743137266428,-27452.19,0.0003589,17]
[356762751,1743137266449,-500.0,0.0003589,17]
[356762752,1743137266474,-626.94,0.0003589,17]
[356762753,1743137266497,-500.0,0.0003589,17]
[356762754,1743137266519,-500.0,0.0003589,17]
[356762755,1743137266540,-2137.05,0.0003589,17]
[356762756,1743137266561,-500.0,0.0003589,17]
[356762757,1743137266582,-500.0,0.0003589,17]
[356762758,1743137266602,-1603.71,0.0003589,17]
[356762759,1743137266623,-500.0,0.0003589,17]
[356762760,1743137266643,-803.29,0.0003589,17]
[356762761,1743137266663,-500.0,0.0003589,17]
[356762762,1743137266682,-1048.78,0.0003589,17]
[356762763,1743137266703,-1335.19,0.0003589,17]
[356762764,1743137266728,-500.0,0.0003589,17]
[356762765,1743137266749,-2008.16,0.0003589,17]
[356762766,1743137266769,-1482.65,0.0003589,17]
[356762767,1743137266790,-500.0,0.0003589,17]
[356762768,1743137266812,-500.0,0.0003589,17]
[356762769,1743137266836,-500.0,0.0003589,17]
[356762770,1743137266857,-811.37,0.0003589,17]
[356762771,1743137266880,-885.69,0.0003589,17]
[356762772,1743137266899,-300.0,0.0003589,30]
[356762773,1743137266923,-4026.6,0.0003589,17]
[356762774,1743137266944,-3406.48,0.0003589,17]
[356762775,1743137266968,-9181.68,0.0003589,17]
[356762776,1743137266989,-500.0,0.0003589,17]
[356762777,1743137267012,-1019.77,0.0003589,17]
[356762778,1743137267035,-500.0,0.0003589,17]
[356762779,1743137267056,-500.0,0.0003589,17]
[356762780,1743137267078,-500.0,0.0003589,17]
[356762781,1743137267099,-500.0,0.0003589,17]
[356762782,1743137267120,-20180.9,0.0003589,17]
[356762783,1743137267142,-500.0,0.0003589,17]
[356762784,1743137267163,-500.0,0.0003589,17]
[356762785,1743137267185,-688.03,0.0003589,17]
[356762786,1743137267206,-2396.98,0.0003589,17]
[356762787,1743137267228,-500.0,0.0003589,17]
[356762788,1743137267249,-500.0,0.0003589,17]
[356762789,1743137267270,-500.0,0.0003589,17]
[356762790,1743137267290,-3356.94,0.0003589,17]
[356762791,1743137267312,-3180.14,0.0003589,17]
[356762792,1743137267334,-997.16,0.0003589,17]
[356762793,1743137267355,-500.0,0.0003589,17]
[356762794,1743137267376,-249706.09,0.0003589,7]
[356762795,1743137267397,-923.12,0.0003589,17]
[356762796,1743137267418,-7240.24,0.0003589,17]
[356762797,1743137267439,-812.1,0.0003589,17]
[356762798,1743137267459,-533.55593265,0.0003589,17]
[356762799,1743137267481,-8776.71,0.0003589,17]
[356762800,1743137267503,-500.0,0.0003589,17]
[356762801,1743137267524,-500.0,0.0003589,2]
[356762802,1743137267546,-9786.49,0.0003589,17]
[356762803,1743137267566,-6940.59,0.0003589,17]
[356762804,1743137267587,-862.65,0.0003589,17]
[356762805,1743137267607,-500.0,0.0003589,17]
[356762806,1743137267628,-500.0,0.0003589,17]
[356762807,1743137267650,-711.74,0.0003589,17]
[356762808,1743137267671,-500.0,0.0003589,17]
[356762809,1743137267692,-500.0,0.0003589,17]
[356762810,1743137267712,-1235.25,0.0003589,17]
[356762811,1743137267735,-1301.09,0.0003589,17]
[356762812,1743137267756,-560.96,0.0003589,17]
[356762813,1743137267777,-7106.12,0.0003589,17]
[356762814,1743137267798,-828.13,0.0003589,17]
[356762815,1743137267818,-500.0,0.0003589,17]
[356762816,1743137267842,-500.0,0.0003589,17]
[356762818,1743137268033,-1889.72,0.0003589,17]
[356762819,1743137268056,-3795.49,0.0003589,17]
[356762820,1743137268079,-500.0,0.0003589,17]
[356762821,1743137268102,-2096.33,0.0003589,17]
[356762822,1743137268125,-500.0,0.0003589,17]
[356762823,1743137268150,-744.22,0.0003589,17]
[356762824,1743137268174,-17594.34,0.0003589,17]
[356762825,1743137268198,-500.0,0.0003589,17]
[356762826,1743137268223,-500.0,0.0003589,17]
[356762827,1743137268246,-621.66,0.0003589,17]
[356762828,1743137268269,-663.78,0.0003589,17]
[356762829,1743137268292,-1826.7,0.0003589,17]
[356762830,1743137268314,-2325.31,0.0003589,17]
[356762831,1743137268337,-679.11,0.0003589,17]
[356762832,1743137268359,-605.69,0.0003589,17]
[356762833,1743137268381,-500.0,0.0003589,17]
[356762834,1743137268403,-500.0,0.0003589,17]
[356762835,1743137268424,-500.0,0.0003589,17]
[356762836,1743137268446,-8358.81,0.0003589,17]
[356762837,1743137268467,-2009.16,0.0003589,17]
[356762838,1743137268491,-3431.69,0.0003589,17]
[356762839,1743137268514,-500.0,0.0003589,17]
[356762840,1743137268536,-2680.72,0.0003589,17]
[356762841,1743137268557,-4198.09,0.0003589,17]
[356762842,1743137268579,-500.0,0.0003589,17]
[356762843,1743137268600,-500.0,0.0003589,17]
[356762844,1743137268623,-538.19,0.0003589,17]
[356762845,1743137268644,-549.43,0.0003589,17]
[356762846,1743137268667,-500.0,0.0003589,17]
[356762847,1743137268689,-500.0,0.0003589,17]
[356762848,1743137268711,-500.0,0.0003589,17]
[356762849,1743137268735,-500.0,0.0003589,17]
[356762850,1743137268757,-500.0,0.0003589,17]
[356762851,1743137268780,-2166.21,0.0003589,17]
[356762852,1743137268803,-500.0,0.0003589,17]
[356762853,1743137268828,-500.0,0.0003589,17]
[356762854,1743137268853,-418.18415381,0.0003589,17]
[356762855,1743137268875,-6302.55,0.0003589,17]
[356762856,1743137268896,-778.07,0.0003589,17]
[356762857,1743137268921,-500.0,0.0003589,17]
[356762858,1743137268944,-1374.76,0.0003589,17]
[356762859,1743137268967,-500.0,0.0003589,14]
[356762860,1743137268992,-500.0,0.0003589,17]
[356762861,1743137269015,-1799.85,0.0003589,17]
[356762862,1743137269041,-588.79,0.0003589,17]
[356762863,1743137269065,-1048.65,0.0003589,17]
[356762864,1743137269088,-500.0,0.0003589,17]
[356762865,1743137269110,-827.17,0.0003589,17]
[356762866,1743137269132,-500.0,0.0003589,17]
[356762867,1743137269154,-500.0,0.0003589,17]
[356762868,1743137269175,-603.78,0.0003589,17]
[356762869,1743137269196,-605.17,0.0003589,17]
[356762870,1743137269217,-500.0,0.0003589,17]
[356762871,1743137269240,-3717.21,0.0003589,17]
[356762872,1743137269261,-1860.77,0.0003589,17]
[356762873,1743137269283,-500.0,0.0003589,17]
[356762874,1743137269305,-500.0,0.0003589,17]
[356762875,1743137269327,-8419.82,0.0003589,17]
[356762876,1743137269350,-1096.06,0.0003589,17]
[356762877,1743137269371,-639.60297722,0.0003589,17]
[356762878,1743137269393,-2709.11,0.0003589,17]
[356762879,1743137269414,-221.73358032,0.0003589,17]
[356762880,1743137269435,-500.0,0.0003589,17]
[356762881,1743137269456,-500.0,0.0003589,17]
[356762882,1743137269479,-1466.97,0.0003589,17]
[356762883,1743137269499,-500.0,0.0003589,2]
[356762884,1743137269521,-1128.02,0.0003589,17]
[356762885,1743137269542,-1691.27,0.0003589,17]
[356762886,1743137269563,-1228.52,0.0003589,17]
[356762887,1743137269584,-619.69,0.0003589,17]
[356762888,1743137269605,-602.75,0.0003589,17]
[356762889,1743137269628,-1092.37955052,0.0003589,17]
[356762890,1743137269649,-500.0,0.0003589,17]
[356762891,1743137269670,-1740.21,0.0003589,17]
[356762892,1743137269691,-861.19,0.0003589,17]
[356762893,1743137269712,-500.0,0.0003589,17]
[356762894,1743137269736,-926.54,0.0003589,17]
[356762895,1743137269757,-3207.07,0.0003589,17]
[356762896,1743137269778,-500.0,0.0003589,17]
[356762897,1743137269798,-500.0,0.0003589,17]
[356762898,1743137269820,-500.0,0.0003589,17]
[356762899,1743137269843,-12675.5,0.0003589,17]
[356762900,1743137269865,-500.0,0.0003589,17]
[356762901,1743137269886,-230.19400856,0.0003589,17]
[356762902,1743137269909,-702.95,0.0003589,17]
[356762903,1743137269930,-500.0,0.0003589,17]
[356762904,1743137269952,-1057.2,0.0003589,17]
[356762905,1743137269975,-1926.83,0.0003589,17]
[356762906,1743137269997,-500.0,0.0003589,17]
[356762907,1743137270019,-500.0,0.0003589,17]
[356762908,1743137270041,-1323.18,0.0003589,17]
[356762909,1743137270063,-500.0,0.0003589,17]
[356762910,1743137270084,-500.0,0.0003589,17]
[356762911,1743137270106,-500.0,0.0003589,17]
[356762912,1743137270126,-626.16,0.0003589,17]
[356762913,1743137270148,-524.85,0.0003589,17]
[356762914,1743137270169,-7503.51,0.0003589,17]
[356762915,1743137270191,-1840.96,0.0003589,17]
[356762916,1743137270211,-500.0,0.0003589,17]
[356762917,1743137270234,-975.59,0.0003589,17]
[356762918,1743137270256,-500.0,0.0003589,17]
[356762919,1743137270276,-1037.21,0.0003589,17]
[356762920,1743137270297,-982.81,0.0003589,17]
[356762921,1743137270324,-2779.38,0.0003589,17]
[356762922,1743137270345,-1000.0,0.0003589,17]
[356762923,1743137270367,-500.0,0.0003589,17]
[356762924,1743137270388,-500.0,0.0003589,17]
[356762925,1743137270408,-500.0,0.0003589,17]
[356762926,1743137270429,-500.0,0.0003589,17]
[356762927,1743137270450,-500.0,0.0003589,17]
[356762928,1743137270472,-500.0,0.0003589,17]
[356762929,1743137270493,-500.0,0.0003589,17]
[356762930,1743137270514,-580.56,0.0003589,17]
[356762931,1743137270535,-626.79,0.0003589,17]
[356762932,1743137270557,-500.0,0.0003589,7]
[356762933,1743137270577,-500.0,0.0003589,17]
[356762934,1743137270598,-5982.82,0.0003589,17]
[356762935,1743137270619,-500.0,0.0003589,17]
[356762936,1743137270641,-500.0,0.0003589,17]
[356762937,1743137270663,-651.99,0.0003589,17]
[356762938,1743137270685,-500.0,0.0003589,17]
[356762939,1743137270707,-842.71,0.0003589,17]
[356762940,1743137270730,-500.0,0.0003589,17]
[356762941,1743137270752,-500.0,0.0003589,17]
[356762942,1743137270774,-500.0,0.0003589,17]
[356762943,1743137270795,-500.0,0.0003589,17]
[356762944,1743137270817,-500.0,0.0003589,17]
[356762945,1743137270842,-500.7,0.0003589,17]
[356762946,1743137270864,-500.0,0.0003589,17]
[356762947,1743137270887,-1145.58,0.0003589,17]
[356762948,1743137270911,-500.0,0.0003589,17]
[356762949,1743137270934,-500.0,0.0003589,17]
[356762950,1743137270957,-740.35,0.0003589,17]
[356762951,1743137270984,-4586.94,0.0003589,17]
[356762952,1743137271159,-500.0,0.0003589,17]
[356762953,1743137271188,-500.0,0.0003589,17]
[356762954,1743137271211,-500.0,0.0003589,17]
[356762955,1743137271236,-500.0,0.0003589,17]
[356762956,1743137271258,-500.0,0.0003589,17]
[356762957,1743137271280,-591.69,0.0003589,17]
[356762958,1743137271304,-4085.66,0.0003589,17]
[356762959,1743137271325,-500.0,0.0003589,17]
[356762960,1743137271346,-500.0,0.0003589,17]
[356762961,1743137271369,-1439.95,0.0003589,17]
[356762962,1743137271390,-2460.2,0.0003589,17]
[356762963,1743137271411,-500.0,0.0003589,17]
[356762964,1743137271436,-30878.82,0.0003589,17]
[356762965,1743137271458,-10453.81,0.0003589,17]
[356762966,1743137271480,-4638.86,0.0003589,17]
[356762967,1743137271501,-754.98,0.0003589,17]
[356762968,1743137271521,-308.6,0.0003589,7]
[356762969,1743137271542,-826.56,0.0003589,17]
[356762970,1743137271563,-500.0,0.0003589,17]
[356762971,1743137271584,-529.03728181,0.0003589,17]
[356762972,1743137271605,-500.0,0.0003589,17]
[356762973,1743137271626,-500.0,0.0003589,17]
[356762974,1743137271647,-500.0,0.0003589,17]
[356762975,1743137271666,-500.0,0.0003589,17]
[356762976,1743137271686,-3479.41,0.0003589,17]
[356762977,1743137271706,-4150.8,0.0003589,17]
[356762978,1743137271732,-500.0,0.0003589,17]
[356762979,1743137271753,-500.0,0.0003589,2]
[356762980,1743137271776,-203.27149013,0.000359,12]
[356762981,1743137271798,-500.0,0.00036,2]